bitfinex-derivatives/quotes_BNBF0:USTF0_20250425
["timestamp","ask_amount","ask_price","bid_price","bid_amount"]
[1745577171980,1.37503869,606.65,606.25,0.28684825]
[1745577172178,2.55283339,606.64,606.25,0.28684825]
[1745577172478,1.37503869,606.63,606.25,0.28684825]
[1745577172680,1.37503869,606.62,606.25,0.28684825]
[1745577172882,1.37503869,606.61,606.25,0.28684825]
[1745577173083,2.55283339,606.6,606.25,0.28684825]
[1745577173284,1.37503869,606.59,606.25,0.28684825]
[1745577173486,2.55283339,606.58,606.22,0.904]
[1745577173680,1.37503869,606.57,606.22,0.904]
[1745577173984,2.55283339,606.56,606.25,0.28686835]
[1745577174185,1.37503869,606.55,606.25,0.28686835]
[1745577174384,1.1777947,606.54,606.25,0.28686835]
[1745577174887,2.55215311,606.53,606.25,0.28686835]
[1745577175081,1.1777947,606.53,606.25,0.28686835]
[1745577175587,1.1777947,606.52,606.25,0.28686835]
[1745577175788,1.1777947,606.51,606.25,0.28686835]
[1745577176290,1.1777947,606.5,606.25,0.28686835]
[1745577176490,1.1777947,606.5,606.22,0.904]
[1745577176791,1.1777947,606.5,606.25,0.286879]
[1745577177094,1.1777947,606.49,606.25,0.286879]
[1745577177890,1.1777947,606.48,606.25,0.286879]
[1745577178394,1.1777947,606.47,606.25,0.286879]
[1745577178992,1.1777947,606.46,606.25,0.286879]
[1745577179394,1.1777947,606.46,605.94,1.04128841]
[1745577179694,1.1777947,606.46,605.95,0.30277023]
[1745577179895,1.1777947,606.45,605.95,0.58968707]
[1745577180195,1.1777947,606.45,605.96,0.30277023]
[1745577180494,1.1777947,606.44,605.96,0.30277023]
[1745577180994,1.1777947,606.43,605.96,0.30277023]
[1745577181198,1.1777947,606.42,605.95,0.28691684]
[1745577181395,1.1777947,606.42,605.96,0.30278264]
[1745577181697,1.23953065,608.45,605.96,0.30278264]
[1745577181896,1.37397925,608.44,605.96,0.30278264]
[1745577182094,2.55086507,608.43,605.96,0.30278264]
[1745577182293,1.37396374,608.42,605.96,0.30278264]
[1745577182489,1.37396374,608.41,605.96,0.30278264]
[1745577182796,1.37396374,608.4,605.95,0.28668284]
[1745577182989,2.55086507,608.39,605.96,0.30278264]
[1745577183192,1.37396374,608.38,605.96,0.30278264]
[1745577183392,1.37396374,608.37,605.96,0.30278264]
[1745577183594,1.37396374,608.36,605.96,0.30278264]
[1745577183794,1.37396374,608.35,605.96,0.30278264]
[1745577183996,2.55086507,608.34,605.96,0.30278264]
[1745577184196,1.37396374,608.33,605.95,0.28668284]
[1745577184396,1.37396374,608.32,605.96,0.30279944]
[1745577184696,1.17690133,608.34,605.96,0.30279944]
[1745577184697,2.55086507,608.31,605.96,0.30279944]
[1745577184890,2.55086507,608.3,605.96,0.30279944]
[1745577185093,1.37396374,608.29,605.96,0.30279944]
[1745577185295,1.37396374,608.28,605.96,0.30279944]
[1745577185495,1.37396374,608.27,605.96,0.30279944]
[1745577185693,1.37396374,608.26,605.95,0.28670646]
[1745577185892,1.37396374,608.25,605.96,0.30279409]
[1745577186092,1.37396374,608.24,605.96,0.30279409]
[1745577186295,1.37396374,608.23,605.96,0.30279409]
[1745577186490,1.37396374,608.22,605.96,0.30279409]
[1745577186691,2.55086507,608.21,605.96,0.30279409]
[1745577186894,1.37396374,608.2,605.96,0.30279409]
[1745577187194,1.37396374,608.19,605.96,0.30279409]
[1745577187393,2.55086507,608.18,605.97,0.30279521]
[1745577187599,1.37286885,608.17,605.96,0.30279521]
[1745577187899,2.54977018,608.16,605.97,0.30279521]
[1745577188095,1.37286885,608.15,605.96,0.30279521]
[1745577188291,1.37286885,608.14,605.97,0.30279521]
[1745577188494,2.54977018,608.13,605.96,0.30279521]
[1745577188701,1.37286885,608.12,605.97,0.30279521]
[1745577188891,1.37286885,608.11,605.96,0.30279521]
[1745577189095,1.37286885,608.1,605.96,0.30279521]
[1745577189295,2.54977018,608.09,605.96,0.30279521]
[1745577189491,1.37286885,608.08,605.96,0.30279521]
[1745577189696,1.37286885,608.07,605.96,0.30279521]
[1745577189893,1.37286885,608.06,605.96,0.30279521]
[1745577190092,2.54977018,608.05,605.96,0.30279521]
[1745577190291,1.37286885,608.04,605.96,0.30279521]
[1745577190494,1.37286885,608.03,605.96,0.30279521]
[1745577190692,1.37286885,608.02,605.96,0.30279521]
[1745577190897,2.54977018,608.01,605.96,0.30279521]
[1745577191098,2.54977018,608.0,605.96,0.30279521]
[1745577191395,1.37286885,607.99,605.96,0.30279521]
[1745577191595,1.37286885,607.98,605.84,0.30279521]
[1745577191791,1.37286885,607.97,605.95,0.28673953]
[1745577191996,1.37286885,607.96,605.96,0.30278616]
[1745577192192,2.54977018,607.95,605.96,0.30278616]
[1745577192389,1.37286885,607.94,605.97,0.30278616]
[1745577192594,1.37286885,607.93,605.83,1.036]
[1745577192792,1.37286885,607.92,605.83,1.036]
[1745577192990,1.3725845,607.91,605.84,0.58955377]
[1745577193189,2.54948583,607.9,605.85,0.30279297]
[1745577193395,1.3725845,607.89,605.85,0.30279297]
[1745577193598,1.37245481,607.88,605.86,0.30280382]
[1745577193796,1.37245481,607.87,605.85,0.30280382]
[1745577193991,2.54935614,607.86,605.85,0.30280382]
[1745577194195,1.37245481,607.85,605.85,0.30280382]
[1745577194391,2.54935614,607.84,605.85,0.30280382]
[1745577194591,1.37245481,607.83,605.85,0.30280382]
[1745577194793,1.37245481,607.82,605.85,0.30280382]
[1745577195092,2.54935614,607.81,605.85,0.30280382]
[1745577195297,2.54935614,607.8,605.85,0.30280382]
[1745577195494,1.37245481,607.79,605.85,0.30280382]
[1745577195697,2.54935614,607.78,605.85,0.30280382]
[1745577195898,1.37245481,607.77,605.85,0.30280382]
[1745577196098,1.17690133,607.78,605.85,0.30280382]
[1745577196099,1.37245481,607.76,605.85,0.30280382]
[1745577196299,2.54935614,607.75,605.85,0.30280382]
[1745577196498,1.37245481,607.74,605.85,0.30280382]
[1745577196702,1.37249452,607.73,605.86,1.17479297]
[1745577196897,1.37249452,607.72,605.87,0.30279297]
[1745577197098,2.54939585,607.71,605.87,0.30279297]
[1745577197298,1.37249452,607.7,605.87,0.30279297]
[1745577197594,2.54939585,607.69,605.87,0.30279297]
[1745577197796,1.37249452,607.68,605.87,0.30279297]
[1745577197998,1.37249452,607.67,605.87,0.30279297]
[1745577198197,1.37249452,607.66,605.87,0.30279297]
[1745577198393,1.37249452,607.65,605.87,0.30279297]
[1745577198623,1.37249452,607.64,605.87,0.30279297]
[1745577198798,1.37249452,607.63,605.87,0.30279297]
[1745577198999,1.37249452,607.62,605.88,0.30279306]
[1745577199196,1.37249452,607.61,605.89,0.30279306]
[1745577199393,1.37249452,607.6,605.9,0.30279306]
[1745577199594,1.37249452,607.6,605.86,0.872]
[1745577199595,1.17690133,607.62,605.87,0.30279306]
[1745577199897,1.17690133,607.62,605.88,0.3027936]
[1745577200096,1.37246987,607.61,605.89,0.3027936]
[1745577200296,1.37246987,607.61,605.9,0.3027936]
[1745577200601,1.37281525,607.6,605.91,0.3027936]
[1745577200902,1.37281525,607.59,605.92,0.3027936]
[1745577201098,1.37281525,607.58,605.88,0.3027936]
[1745577201302,2.54971658,607.57,605.92,0.871]
[1745577201600,1.37281525,607.56,605.92,0.871]
[1745577201800,1.37235193,607.55,605.93,0.30279989]
[1745577202000,1.37235193,607.54,605.93,0.30279989]
[1745577202197,1.37235193,607.53,605.93,0.30279989]
[1745577202499,2.54925326,607.52,605.93,0.30279989]
[1745577202695,2.54925326,607.51,605.93,0.30279989]
[1745577202896,1.37235193,607.5,605.92,0.871]
[1745577203097,2.54925326,607.49,605.93,0.3028028]
[1745577203397,1.37235193,607.48,605.93,0.3028028]
[1745577203600,2.54925326,607.47,605.93,0.3028028]
[1745577203797,1.3718355,607.46,605.92,0.871]
[1745577203999,1.3718355,607.45,605.92,0.871]
[1745577204201,1.3718355,607.44,605.92,0.871]
[1745577204398,2.54873683,607.43,605.93,0.30283998]
[1745577204601,1.3718355,607.42,605.93,0.30283998]
[1745577204803,1.3718355,607.41,605.93,1.16183998]
[1745577205002,1.3718355,607.4,605.94,0.30283998]
[1745577205203,1.3718355,607.39,605.94,0.30283998]
[1745577205397,1.3718355,607.38,605.94,0.30283998]
[1745577205598,1.3718355,607.37,605.94,0.30283998]
[1745577205798,2.54873683,607.36,605.94,0.30283998]
[1745577205997,2.54873683,607.35,605.94,0.30283998]
[1745577206297,1.3718355,607.34,605.94,0.30283998]
[1745577206501,2.54873683,607.33,605.94,0.30283998]
[1745577206698,1.3718355,607.32,605.94,0.30283998]
[1745577206903,2.54873683,607.31,605.94,0.30283998]
[1745577207106,1.3718355,607.3,605.94,0.30283998]
[1745577207404,1.3718355,607.29,605.94,0.30283998]
[1745577207600,1.3718355,607.28,605.94,0.30283998]
[1745577207806,1.3718355,607.27,605.94,0.30283998]
[1745577208006,1.3718355,607.26,605.93,0.859]
[1745577208206,1.20539832,620.8,605.93,0.859]
[1745577208207,2.54873683,607.25,605.93,0.859]
[1745577208407,1.3718355,607.24,605.93,0.859]
[1745577208607,1.3718355,607.23,605.93,0.859]
[1745577208805,1.3718355,607.22,605.93,0.859]
[1745577209003,1.3718355,607.21,605.93,0.859]
[1745577209203,2.54873683,607.2,605.93,0.859]
[1745577209404,2.54873683,607.19,605.93,0.859]
[1745577209606,1.3718355,607.18,605.93,0.859]
[1745577209806,2.54873683,607.17,605.93,0.859]
[1745577210003,1.3718355,607.16,605.93,0.859]
[1745577210209,1.3718355,607.15,605.93,0.859]
[1745577210505,1.3718355,607.14,605.93,0.859]
[1745577210707,1.17690133,607.15,605.93,0.859]
[1745577210708,1.3718355,607.13,605.93,0.859]
[1745577210908,1.3718355,607.12,605.93,0.859]
[1745577211109,1.17690133,607.15,605.93,0.859]
[1745577211110,1.3718355,607.11,605.93,0.859]
[1745577211410,2.54873683,607.1,605.93,0.859]
[1745577211706,1.3718355,607.09,605.93,0.859]
[1745577211909,1.3718355,607.08,605.93,0.859]
[1745577212105,1.3718355,607.07,605.93,0.859]
[1745577212409,1.3718355,607.06,605.93,0.859]
[1745577212708,2.54873683,607.05,605.93,0.859]
[1745577212908,1.3718355,607.04,605.93,0.859]
[1745577213102,1.3718355,607.03,605.93,0.859]
[1745577213304,2.54873683,607.02,605.93,0.859]
[1745577213511,1.3718355,607.01,605.93,0.859]
[1745577213709,1.3718355,607.0,605.93,0.859]
[1745577213905,1.3718355,606.99,605.93,0.859]
[1745577214107,1.3718355,606.98,605.93,0.859]
[1745577214307,2.54873683,606.97,605.93,0.859]
[1745577214505,1.3718355,606.96,605.93,0.859]
[1745577214704,1.3718355,606.95,605.93,0.859]
[1745577214907,1.17690133,606.97,605.93,0.859]
[1745577214908,1.3718355,606.94,605.93,0.859]
[1745577215209,1.3718355,606.93,605.93,0.859]
[1745577215509,2.54873683,606.92,605.93,0.859]
[1745577215704,1.3718355,606.91,605.93,0.859]
[1745577215904,2.54873683,606.9,605.93,0.859]
[1745577216103,2.54873683,606.89,605.93,0.859]
[1745577216308,1.3718355,606.88,605.93,0.859]
[1745577216505,1.3718355,606.87,605.93,0.859]
[1745577216704,1.3718355,606.86,605.93,0.859]
[1745577217008,1.3718355,606.85,605.93,0.859]
[1745577217205,2.54873683,606.84,605.93,0.859]
[1745577217408,1.3718355,606.83,605.93,0.859]
[1745577217604,1.3718355,606.82,605.93,0.859]
[1745577217808,1.3718355,606.81,605.93,0.859]
[1745577218004,2.54873683,606.8,605.93,2.161]
[1745577218208,1.3718355,606.79,605.93,2.161]
[1745577218409,1.3718355,606.78,605.93,2.161]
[1745577218610,1.3718355,606.77,605.93,2.161]
[1745577218810,1.3718355,606.76,605.93,2.161]
[1745577219008,1.3718355,606.75,605.93,2.161]
[1745577219310,1.3718355,606.74,605.93,2.161]
[1745577219506,1.3718355,606.73,605.93,2.161]
[1745577219709,1.3718355,606.72,605.93,2.161]
[1745577219909,1.3718355,606.71,605.93,2.161]
[1745577220110,1.3718355,606.7,605.93,2.161]
[1745577220310,2.54873683,606.69,605.93,2.161]
[1745577220511,1.3718355,606.68,605.93,2.161]
[1745577220712,2.54873683,606.67,605.93,2.161]
[1745577221007,1.3718355,606.66,605.93,2.161]
[1745577221210,1.3718355,606.65,605.93,2.161]
[1745577221407,1.3718355,606.64,605.93,2.161]
[1745577221606,2.54873683,606.63,605.93,2.161]
[1745577221807,1.3718355,606.62,605.93,2.161]
[1745577222011,2.54873683,606.61,605.93,2.161]
[1745577222217,1.3718355,606.6,605.93,2.161]
[1745577222411,1.3718355,606.59,605.93,2.161]
[1745577222713,2.54873683,606.58,605.93,2.161]
[1745577222914,1.3718355,606.57,605.93,2.161]
[1745577223215,1.3718355,606.56,605.93,2.161]
[1745577223514,1.3718355,606.55,605.93,2.161]
[1745577223714,1.3718355,606.54,605.93,2.161]
[1745577223915,1.3718355,606.53,605.93,2.161]
[1745577224113,1.3718355,606.52,605.93,2.161]
[1745577224315,1.3718355,606.51,605.93,2.161]
[1745577224511,2.54873683,606.5,605.93,2.161]
[1745577224710,1.3718355,606.49,605.93,2.161]
[1745577225017,2.54873683,606.48,605.93,2.161]
[1745577225214,1.3718355,606.47,605.93,2.161]
[1745577225418,1.3718355,606.46,605.93,2.161]
[1745577225611,1.3718355,606.45,605.93,2.161]
[1745577225813,1.3718355,606.44,605.93,2.161]
[1745577226014,1.3718355,606.43,605.93,2.161]
[1745577226212,1.3718355,606.42,605.93,2.161]
[1745577226412,2.54873683,606.41,605.93,2.161]
[1745577226613,1.3718355,606.4,605.93,2.161]
[1745577226813,2.54873683,606.39,605.93,2.161]
[1745577227017,2.54873683,606.38,605.93,2.161]
[1745577227218,1.3718355,606.37,605.93,2.161]
[1745577227517,1.36653833,606.36,605.93,2.161]
[1745577227714,1.36653833,606.35,605.93,2.161]
[1745577227912,2.54343966,606.34,605.93,2.161]
[1745577228117,1.36653833,606.33,605.93,2.161]
[1745577228416,2.54343966,606.32,605.93,2.161]
[1745577228617,1.36653833,606.31,605.93,2.161]
[1745577228823,1.36653833,606.3,605.93,2.161]
[1745577229018,1.36653833,606.29,605.93,2.161]
[1745577229318,1.36653833,606.28,605.93,2.161]
[1745577229519,1.36653833,606.27,605.93,2.161]
[1745577229718,1.36653833,606.26,605.93,2.161]
[1745577230019,2.54343966,606.25,605.93,2.161]
[1745577230318,1.17690133,606.25,605.93,2.161]
[1745577230513,1.17690133,606.24,605.93,2.161]
[1745577231314,1.17690133,606.23,605.93,2.161]
[1745577231814,1.17690133,606.22,605.93,2.161]
[1745577232319,1.17690133,606.21,605.93,2.161]
[1745577232920,1.23953065,608.36,605.93,2.161]
[1745577233220,2.53684586,608.35,605.93,2.161]
[1745577233420,1.36637479,608.34,605.93,2.161]
[1745577233621,1.36637479,608.33,605.93,2.161]
[1745577233920,2.53684586,608.32,605.93,2.161]
[1745577234123,1.36637479,608.31,605.93,2.161]
[1745577234415,1.36637479,608.3,605.93,2.161]
[1745577234622,1.36656179,608.29,605.93,2.161]
[1745577234821,1.36656179,608.28,605.93,2.161]
[1745577235121,2.53703286,608.27,605.93,2.161]
[1745577235315,1.36656179,608.26,605.93,2.161]
[1745577235514,2.53703286,608.25,605.93,2.161]
[1745577235715,1.36656179,608.24,605.93,2.161]
[1745577235918,1.36656179,608.23,605.93,2.161]
[1745577236120,2.53703286,608.22,605.93,2.161]
[1745577236319,1.36656179,608.21,605.93,2.161]
[1745577236621,1.36656179,608.2,605.93,2.161]
[1745577236821,2.53703286,608.19,605.93,2.161]
[1745577237021,1.36656179,608.18,605.93,2.161]
[1745577237323,1.36656179,608.17,605.93,2.161]
[1745577237522,1.36656179,608.16,605.93,2.161]
[1745577237822,2.53703286,608.15,605.93,2.161]
[1745577238022,1.36656179,608.14,605.93,2.161]
[1745577238217,1.36656179,608.13,605.93,2.161]
[1745577238421,1.36694939,608.12,605.93,2.161]
[1745577238722,1.36694939,608.11,605.93,2.161]
[1745577238922,2.53742046,608.1,605.93,2.161]
[1745577239122,1.36694939,608.09,605.93,2.161]
[1745577239323,1.36694939,608.08,605.93,2.161]
[1745577239523,1.36694939,608.07,605.93,2.161]
[1745577239723,1.36694939,608.06,605.93,2.161]
[1745577240022,1.36694939,608.05,605.93,2.161]
[1745577240218,1.36694939,608.04,605.93,2.161]
[1745577240420,2.53742046,608.03,605.93,2.161]
[1745577240619,1.36694939,608.02,605.93,2.161]
[1745577240819,1.36694939,608.01,605.93,2.161]
[1745577241023,2.53742046,608.0,605.93,2.161]
[1745577241324,1.36694939,607.99,605.93,2.161]
[1745577241623,1.36694939,607.98,605.93,2.161]
[1745577241919,2.53742046,607.97,605.93,2.161]
[1745577242120,1.36694939,607.96,605.93,2.161]
[1745577242319,1.36694939,607.95,605.93,2.161]
[1745577242519,2.53742046,607.94,605.93,2.161]
[1745577242719,2.53742046,607.93,605.93,2.161]
[1745577242918,1.36694939,607.92,605.93,2.161]
[1745577243117,1.36694939,607.91,605.93,2.161]
[1745577243319,1.36694939,607.9,605.93,2.161]
[1745577243523,2.53742046,607.89,605.93,2.161]
[1745577243724,1.36694939,607.88,605.93,2.161]
[1745577244022,1.36694939,607.87,605.93,2.161]
[1745577244218,2.53742046,607.86,605.93,2.161]
[1745577244418,1.36694939,607.85,605.93,2.161]
[1745577244623,1.36694939,607.84,605.93,2.161]
[1745577244822,1.36694939,607.83,605.93,2.161]
[1745577245019,2.53742046,607.82,605.93,2.161]
[1745577245223,1.36694939,607.81,605.93,2.161]
[1745577245422,1.36694939,607.8,605.93,2.161]
[1745577245723,2.53742046,607.79,605.93,2.161]
[1745577245918,1.36694939,607.78,605.93,0.859]
[1745577246118,1.36694939,607.77,605.93,0.859]
[1745577246321,1.36694939,607.76,605.93,0.859]
[1745577246621,1.36694939,607.75,605.93,0.859]
[1745577246819,1.36694939,607.74,605.93,0.859]
[1745577247119,1.36694939,607.73,605.92,0.28682934]
[1745577247319,2.53742046,607.72,605.92,0.28682934]
[1745577247522,1.36694939,607.71,605.92,0.28682934]
[1745577247722,1.36694939,607.7,605.92,0.28682934]
[1745577247920,2.53742046,607.69,605.92,0.28682934]
[1745577248125,1.36694939,607.68,605.92,0.28682934]
[1745577248321,1.36694939,607.67,605.92,0.28682934]
[1745577248525,2.53742046,607.66,605.92,0.28682934]
[1745577248727,1.36694939,607.65,605.92,0.28682934]
[1745577248927,1.36694939,607.64,605.92,1.52782934]
[1745577249223,2.53742046,607.63,605.92,2.87582934]
[1745577249427,1.36694939,607.62,605.92,2.87582934]
[1745577249627,1.36694939,607.61,605.92,2.87582934]
[1745577249923,2.53742046,607.6,605.92,4.14382934]
[1745577250123,1.36694939,607.59,605.92,5.28882934]
[1745577250323,1.36694939,607.58,605.92,5.28882934]
[1745577250627,1.3683379,607.57,605.92,5.28882934]
[1745577250826,1.3683379,607.56,605.92,5.28882934]
[1745577251028,2.53880897,607.55,605.92,5.28882934]
[1745577251225,1.3683379,607.54,605.92,5.28882934]
[1745577251428,2.53880897,607.53,605.92,5.28882934]
[1745577251627,1.3683379,607.52,605.92,5.28882934]
[1745577251830,2.53880897,607.51,605.92,5.28882934]
[1745577252030,1.3683379,607.5,605.92,5.28882934]
[1745577252228,2.53880897,607.49,605.92,5.28882934]
[1745577252431,1.3683379,607.48,605.92,5.28882934]
[1745577252727,1.3683379,607.47,605.92,5.28882934]
[1745577252927,1.3683379,607.46,605.92,5.28882934]
[1745577253129,2.53880897,607.45,605.92,5.28882934]
[1745577253327,1.3683379,607.44,605.92,5.28882934]
[1745577253528,1.3683379,607.43,605.92,5.28882934]
[1745577253729,1.17047107,607.45,605.92,5.28882934]
[1745577253730,1.3683379,607.42,605.92,5.28882934]
[1745577253930,1.17047107,607.45,605.92,5.28882934]
[1745577253931,2.53880897,607.41,605.92,5.28882934]
[1745577254127,1.3683379,607.4,605.92,5.28882934]
[1745577254330,1.3683379,607.39,605.92,5.28882934]
[1745577254530,2.53880897,607.38,605.92,5.002]
[1745577254832,1.3683379,607.37,605.92,5.28886599]
[1745577255032,1.3683379,607.36,605.92,5.28886599]
[1745577255229,1.3683379,607.35,605.92,5.28886599]
[1745577255428,1.3683379,607.34,605.92,5.28886599]
[1745577255634,1.3683379,607.33,605.92,5.28886599]
[1745577255829,1.3683379,607.32,605.92,5.28886599]
[1745577256031,1.3683379,607.31,605.92,5.28886599]
[1745577256235,1.36970868,607.3,605.92,5.28886599]
[1745577256434,2.54017975,607.29,605.92,5.28886599]
[1745577256631,1.36970868,607.28,605.92,5.28886599]
[1745577256935,1.36970868,607.27,605.92,5.28886599]
[1745577257133,2.54017975,607.26,605.92,5.28886599]
[1745577257337,1.36970868,607.25,605.92,5.28886599]
[1745577257537,2.54017975,607.24,605.92,5.002]
[1745577257738,1.36970868,607.23,605.92,5.28888254]
[1745577257933,1.36970868,607.22,605.92,5.28888254]
[1745577258131,1.36970868,607.21,605.92,5.28888254]
[1745577258331,1.36970868,607.2,605.92,5.28888254]
[1745577258537,1.36970868,607.19,605.92,5.28888254]
[1745577258737,1.36970868,607.18,605.92,5.28888254]
[1745577258936,2.54017975,607.17,605.92,5.28888254]
[1745577259137,1.36970868,607.16,605.92,5.28888254]
[1745577259339,1.36970868,607.15,605.92,5.28888254]
[1745577259531,1.36970868,607.14,605.92,5.28888254]
[1745577259736,2.54017975,607.13,605.92,5.28888254]
[1745577259938,1.36970868,607.12,605.92,5.28888254]
[1745577260139,1.36970868,607.11,605.92,5.28888254]
[1745577260338,2.54017975,607.1,605.92,5.28888254]
[1745577260533,1.36970868,607.09,605.92,5.002]
[1745577260737,2.54017975,607.08,605.92,5.002]
[1745577260933,1.36970868,607.07,605.92,5.28890028]
[1745577261134,1.17047107,607.08,605.92,5.28890028]
[1745577261735,1.37138808,607.07,605.92,5.28890028]
[1745577262041,1.17047107,607.08,605.92,5.28890028]
[1745577262640,1.37196536,607.07,605.92,5.28890028]
[1745577262844,1.17047107,607.08,605.92,5.28890028]
[1745577263136,1.3726673,607.07,605.92,5.28890028]
[1745577263545,1.17047107,607.08,605.92,5.002]
[1745577263836,1.17047107,607.08,605.92,5.28891802]
[1745577264442,1.37319144,607.07,605.92,5.28891802]
[1745577264738,1.17047107,607.08,605.92,5.28891802]
[1745577265643,1.37346392,607.07,605.92,5.28891802]
[1745577265840,1.37346392,607.06,605.92,5.28891802]
[1745577266040,1.37346392,607.05,605.92,5.28891802]
[1745577266336,1.37346392,607.04,605.92,5.28891802]
[1745577266541,1.37346392,607.03,605.92,5.002]
[1745577266741,1.37346392,607.02,605.92,5.002]
[1745577267039,2.54393499,607.01,605.92,5.28892157]
[1745577267242,1.37346392,607.0,605.92,5.28892157]
[1745577267542,2.54393499,606.99,605.92,5.28892157]
[1745577267741,1.37346392,606.98,605.92,5.28892157]
[1745577268041,1.37443792,606.97,605.92,5.28892157]
[1745577268238,1.37443792,606.96,605.92,5.28892157]
[1745577268442,2.54490899,606.95,605.92,5.28892157]
[1745577268642,1.37443792,606.94,605.92,5.28892157]
[1745577268941,2.54490899,606.93,605.92,5.28892157]
[1745577269142,1.37443792,606.92,605.92,5.28892157]
[1745577269442,1.17047107,606.93,605.92,5.002]
[1745577269443,1.37443792,606.91,605.92,5.002]
[1745577269640,2.54490899,606.9,605.92,5.28893577]
[1745577269839,1.37443792,606.89,605.92,5.28893577]
[1745577270037,1.37490511,606.88,605.92,5.28893577]
[1745577270242,2.54537618,606.87,605.92,5.28893577]
[1745577270442,1.37490511,606.86,605.92,5.28893577]
[1745577270742,1.37490511,606.85,605.92,5.28893577]
[1745577270941,2.54537618,606.84,605.92,5.28893577]
[1745577271141,1.37490511,606.83,605.92,5.28893577]
[1745577271343,2.54537618,606.82,605.92,5.28893577]
[1745577271538,1.37490511,606.81,605.92,5.28893577]
[1745577271744,1.37490511,606.8,605.92,5.28893577]
[1745577271938,2.54537618,606.79,605.92,5.28893577]
[1745577272138,1.37490511,606.78,605.92,5.28893577]
[1745577272338,1.37490511,606.77,605.92,5.28893577]
[1745577272541,1.37490511,606.76,605.92,5.002]
[1745577272845,2.54537618,606.75,605.92,5.28892512]
[1745577273039,1.37490511,606.74,605.92,5.28892512]
[1745577273242,2.54537618,606.73,605.92,5.28892512]
[1745577273443,2.54537618,606.72,605.92,5.28892512]
[1745577273642,1.37490511,606.71,605.92,5.28892512]
[1745577273943,2.54537618,606.7,605.92,5.28892512]
[1745577274140,1.37490511,606.69,605.92,5.28892512]
[1745577274338,1.37490511,606.68,605.92,5.28892512]
[1745577274541,2.54503095,606.67,605.92,5.28892512]
[1745577274843,1.37455988,606.66,605.92,0.28692512]
[1745577275039,2.54503095,606.65,605.93,0.30288093]
[1745577275241,1.37455988,606.64,605.93,0.30288093]
[1745577275441,1.37455988,606.63,605.93,0.30288093]
[1745577275643,2.54503095,606.62,605.85,1.04850162]
[1745577275842,1.37455988,606.61,605.92,0.28695351]
[1745577276044,1.37455988,606.6,605.92,0.28695351]
[1745577276244,1.37455988,606.59,605.92,0.28695351]
[1745577276543,1.37455988,606.58,605.93,0.30288157]
[1745577276739,2.54503095,606.57,605.93,0.30288157]
[1745577276944,1.37453134,606.56,605.93,0.30288157]
[1745577277240,1.37453134,606.55,605.93,0.30288157]
[1745577277544,2.54500241,606.54,605.93,0.30288157]
[1745577277744,2.54500241,606.53,605.93,0.30288157]
[1745577278043,2.54500241,606.52,605.93,0.30288157]
[1745577278245,2.54500241,606.51,605.93,0.30288157]
[1745577278440,1.37453134,606.5,605.93,0.30288157]
[1745577278641,2.54500241,606.49,605.83,1.04850162]
[1745577278841,1.37453134,606.48,605.92,0.28696771]
[1745577279044,1.37453134,606.47,605.93,0.30287437]
[1745577279245,1.37453134,606.46,605.93,0.30287437]
[1745577279547,2.54500241,606.45,605.94,0.30287437]
[1745577279844,1.37453134,606.44,605.83,1.04850162]
[1745577280042,1.37453134,606.43,605.93,0.28697362]
[1745577280244,1.17047107,606.45,605.94,0.30287439]
[1745577280445,1.17047107,606.45,605.84,0.30287439]
[1745577280642,1.17047107,606.44,605.93,0.28694996]
[1745577280947,1.17047107,606.44,605.94,0.30287439]
[1745577281148,1.17047107,606.44,605.93,0.28694641]
[1745577281348,1.17047107,606.43,605.94,0.30287439]
[1745577281745,1.17047107,606.42,605.81,0.30287439]
[1745577281943,1.17047107,606.42,605.93,0.28693813]
[1745577282246,1.17047107,606.41,605.94,0.30287439]
[1745577282550,1.24668173,608.2,605.95,0.30287439]
[1745577282749,1.24668173,608.2,605.81,0.30287439]
[1745577282949,0.28674426,608.19,605.94,0.28674426]
[1745577283249,1.37402257,608.18,605.95,0.30287439]
[1745577283449,2.55098931,608.17,605.81,0.30287439]
[1745577283644,1.37402257,608.16,605.82,0.30287439]
[1745577283845,1.37402257,608.15,605.81,0.30287439]
[1745577284044,2.55098931,608.14,605.81,0.30287439]
[1745577284244,1.37402257,608.13,605.81,0.30287439]
[1745577284445,1.37402257,608.12,605.81,0.30287439]
[1745577284646,2.55098931,608.11,605.82,0.28675135]
[1745577284850,1.37402257,608.1,605.84,1.04850162]
[1745577285049,1.37402257,608.09,605.85,0.30281429]
[1745577285246,2.55098931,608.08,605.85,0.30281429]